[Event "Early-Titled-Tuesday-Blitz-March-12-2024"]
[Site "Chess.com"]
[Date "2024.03.12"]
[Round "9"]
[White "Yan_Dyomin2010"]
[Black "GMKrikor"]
[Result "1-0"]
[WhiteElo "2734"]
[BlackElo "2862"]
[TimeControl "180+1"]
[EndTime "9:44:28 PDT"]
[Termination "Yan_Dyomin2010 won by resignation"]

1. e4 {[%clk 0:03:00.9]} 1... c5 {[%clk 0:02:58.9]} 2. c3 {[%clk 0:02:58.1]}
2... d5 {[%clk 0:02:58.1]} 3. exd5 {[%clk 0:02:59]} 3... Qxd5 {[%clk 0:02:58.5]}
4. d4 {[%clk 0:02:59.4]} 4... g6 {[%clk 0:02:56]} 5. Nf3 {[%clk 0:02:56.3]} 5...
Bg7 {[%clk 0:02:55.7]} 6. Na3 {[%clk 0:02:53.6]} 6... cxd4 {[%clk 0:02:55.8]} 7.
Nb5 {[%clk 0:02:52]} 7... Na6 {[%clk 0:02:55.4]} 8. cxd4 {[%clk 0:02:49.4]} 8...
Nf6 {[%clk 0:02:52]} 9. Nc3 {[%clk 0:02:47.2]} 9... Qd6 {[%clk 0:02:41.3]} 10.
Ne5 {[%clk 0:02:38.4]} 10... O-O {[%clk 0:02:40.4]} 11. Be2 {[%clk 0:02:38.2]}
11... Nc7 {[%clk 0:02:38.8]} 12. O-O {[%clk 0:02:36.7]} 12... Ncd5 {[%clk
0:02:38.7]} 13. Bf3 {[%clk 0:02:34]} 13... Be6 {[%clk 0:02:36]} 14. Re1 {[%clk
0:02:30.4]} 14... a6 {[%clk 0:02:32.8]} 15. Na4 {[%clk 0:02:27.3]} 15... Rad8
{[%clk 0:02:26.4]} 16. Nc5 {[%clk 0:02:26.7]} 16... Bc8 {[%clk 0:02:24.7]} 17.
a3 {[%clk 0:02:21.7]} 17... b6 {[%clk 0:02:22.9]} 18. Ne4 {[%clk 0:02:16.5]}
18... Nxe4 {[%clk 0:02:21.8]} 19. Bxe4 {[%clk 0:02:14.5]} 19... Bb7 {[%clk
0:02:19.9]} 20. Qf3 {[%clk 0:02:06.7]} 20... e6 {[%clk 0:02:04.2]} 21. Bd2
{[%clk 0:01:49.2]} 21... b5 {[%clk 0:01:58.4]} 22. Rac1 {[%clk 0:01:38.6]} 22...
Qb6 {[%clk 0:01:44.2]} 23. Be3 {[%clk 0:01:02.2]} 23... a5 {[%clk 0:01:08.7]}
24. h4 {[%clk 0:00:52.4]} 24... b4 {[%clk 0:00:54.6]} 25. a4 {[%clk 0:00:49.7]}
25... Bxe5 {[%clk 0:00:28]} 26. dxe5 {[%clk 0:00:46.9]} 26... Nxe3 {[%clk
0:00:28.6]} 27. Bxb7 {[%clk 0:00:17]} 27... Nf5 {[%clk 0:00:24.1]} 28. Be4
{[%clk 0:00:17.1]} 28... Nxh4 {[%clk 0:00:20.6]} 29. Qf6 {[%clk 0:00:16.5]}
29... Nf5 {[%clk 0:00:19.5]} 30. Bxf5 {[%clk 0:00:16.7]} 30... gxf5 {[%clk
0:00:10.9]} 31. Re3 {[%clk 0:00:16.2]} 31... Rd4 {[%clk 0:00:11.5]} 32. Rg3+
{[%clk 0:00:13.8]} 32... Rg4 {[%clk 0:00:11.7]} 33. Rxg4+ {[%clk 0:00:14.3]}
33... fxg4 {[%clk 0:00:12.6]} 34. Rc4 {[%clk 0:00:14.4]} 34... Rd8 {[%clk
0:00:03.4]} 35. Rxg4+ {[%clk 0:00:13.6]} 35... Kf8 {[%clk 0:00:04.1]} 36. Rg7
{[%clk 0:00:09]} 36... Qc7 {[%clk 0:00:03]} 37. Rxh7 {[%clk 0:00:08.1]} 37...
Rd1+ {[%clk 0:00:01.8]} 38. Kh2 {[%clk 0:00:08.4]} 38... Ke8 {[%clk 0:00:02.7]}
39. Rh8+ {[%clk 0:00:08.4]} 39... Kd7 {[%clk 0:00:03.4]} 40. Qxf7+ {[%clk
0:00:08.4]} 40... Kc6 {[%clk 0:00:04.1]} 41. Qxc7+ {[%clk 0:00:08.2]} 41... Kxc7
{[%clk 0:00:04.3]} 42. Ra8 {[%clk 0:00:08.8]} 42... Rd5 {[%clk 0:00:03.6]} 43.
f4 {[%clk 0:00:07.8]} 43... Kb7 {[%clk 0:00:04.2]} 44. Re8 {[%clk 0:00:07.6]}
44... Rd2 {[%clk 0:00:04.9]} 45. Rxe6 {[%clk 0:00:08.2]} 45... Rxb2 {[%clk
0:00:04.8]} 46. f5 {[%clk 0:00:09.1]} 46... Re2 {[%clk 0:00:04.1]} 47. f6 {[%clk
0:00:09.4]} 47... b3 {[%clk 0:00:04.6]} 48. Re7+ {[%clk 0:00:09.6]} 48... Kc6
{[%clk 0:00:04.6]} 49. f7 {[%clk 0:00:09.9]} 49... Rf2 {[%clk 0:00:04.8]} 50.
Re8 {[%clk 0:00:08]} 50... b2 {[%clk 0:00:04.3]} 51. Rb8 {[%clk 0:00:07.1]}
51... Kd5 {[%clk 0:00:04.9]} 52. Kg3 {[%clk 0:00:05.6]} 52... Rxf7 {[%clk
0:00:02.8]} 53. Rxb2 {[%clk 0:00:06.2]} 53... Kxe5 {[%clk 0:00:02.7]} 54. Rb5+
{[%clk 0:00:06.9]} 54... Ke4 {[%clk 0:00:03.3]} 55. Rxa5 {[%clk 0:00:07.8]}
55... Rg7+ {[%clk 0:00:03.7]} 56. Kf2 {[%clk 0:00:08.5]} 56... Rf7+ {[%clk
0:00:04.2]} 57. Kg1 {[%clk 0:00:09.3]} 57... Kf4 {[%clk 0:00:02.8]} 58. Ra8
{[%clk 0:00:09.8]} 58... Rb7 {[%clk 0:00:02]} 59. Rf8+ {[%clk 0:00:10.2]} 59...
Kg3 {[%clk 0:00:01.9]} 60. Rf3+ {[%clk 0:00:10.8]} 60... Kg4 {[%clk 0:00:02.5]}
61. Ra3 {[%clk 0:00:11.7]} 61... Rb1+ {[%clk 0:00:02.5]} 62. Kh2 {[%clk
0:00:12.4]} 62... Rb8 {[%clk 0:00:02.5]} 63. a5 {[%clk 0:00:13.1]} 63... Rh8+
{[%clk 0:00:03.1]} 64. Kg1 {[%clk 0:00:13.7]} 64... Rh7 {[%clk 0:00:03.2]} 65.
a6 {[%clk 0:00:14.6]} 65... Ra7 {[%clk 0:00:03.8]} 66. Kf2 {[%clk 0:00:14.9]}
66... Kf4 {[%clk 0:00:04.5]} 67. g3+ {[%clk 0:00:15.7]} 67... Ke4 {[%clk
0:00:04.7]} 68. Kg2 {[%clk 0:00:16.5]} 68... Kf5 {[%clk 0:00:04.8]} 69. Kf3
{[%clk 0:00:17.1]} 69... Ke5 {[%clk 0:00:05.1]} 70. g4 {[%clk 0:00:17.8]} 70...
Kf6 {[%clk 0:00:04.9]} 71. Kf4 {[%clk 0:00:18.7]} 71... Ke6 {[%clk 0:00:05.6]}
72. Kg5 {[%clk 0:00:18.6]} 72... Ke5 {[%clk 0:00:05.6]} 73. Kg6 {[%clk
0:00:18.6]} 73... Ke6 {[%clk 0:00:04.5]} 74. g5 {[%clk 0:00:19.5]} 74... Ke5
{[%clk 0:00:04.9]} 75. Kh6 {[%clk 0:00:20.1]} 75... Kf5 {[%clk 0:00:03.4]} 76.
g6 {[%clk 0:00:20.7]} 76... Kf6 {[%clk 0:00:03.9]} 77. Ra5 {[%clk 0:00:19]}
77... Rg7 {[%clk 0:00:01.5]} 78. a7 {[%clk 0:00:17.3]} 78... Rxg6+ {[%clk
0:00:01.7]} 79. Kh7 {[%clk 0:00:17.9]} 79... Rg7+ {[%clk 0:00:02.2]} 80. Kh8
{[%clk 0:00:18.3]} 80... Rg1 {[%clk 0:00:02.2]} 81. a8=Q {[%clk 0:00:17.6]}
81... Kf7 {[%clk 0:00:02.4]} 82. Qb7+ {[%clk 0:00:17.3]} 1-0

[Event "Early-Titled-Tuesday-Blitz-March-12-2024"]
[Site "Chess.com"]
[Date "2024.03.12"]
[Round "9"]
[White "szachuspl"]
[Black "eightbyeightchess"]
[Result "1/2-1/2"]
[WhiteElo "2524"]
[BlackElo "2406"]
[TimeControl "180+1"]
[EndTime "9:44:53 PDT"]
[Termination "Game drawn by 50-move rule"]

1. d4 {[%clk 0:03:00.9]} 1... d5 {[%clk 0:02:59.1]} 2. c4 {[%clk 0:03:01.4]}
2... c6 {[%clk 0:02:59.2]} 3. Nc3 {[%clk 0:03:01.9]} 3... Nf6 {[%clk 0:03:00]}
4. Nf3 {[%clk 0:03:02.1]} 4... dxc4 {[%clk 0:03:00.6]} 5. a4 {[%clk 0:03:01.2]}
5... Bf5 {[%clk 0:03:00.5]} 6. Ne5 {[%clk 0:03:00]} 6... Nbd7 {[%clk 0:03:00.3]}
7. Nxc4 {[%clk 0:03:00.4]} 7... Qc7 {[%clk 0:03:01.2]} 8. g3 {[%clk 0:03:00.4]}
8... e5 {[%clk 0:03:01.4]} 9. dxe5 {[%clk 0:03:00.8]} 9... Nxe5 {[%clk 0:03:02]}
10. Bf4 {[%clk 0:03:01.2]} 10... Nfd7 {[%clk 0:03:02.1]} 11. Bg2 {[%clk
0:02:56.7]} 11... g5 {[%clk 0:03:01.7]} 12. Nxe5 {[%clk 0:02:55.8]} 12... gxf4
{[%clk 0:03:01.6]} 13. Nxd7 {[%clk 0:02:54.8]} 13... Bxd7 {[%clk 0:03:01]} 14.
O-O {[%clk 0:02:55]} 14... O-O-O {[%clk 0:02:59.3]} 15. a5 {[%clk 0:02:53.1]}
15... a6 {[%clk 0:02:40.4]} 16. Qa4 {[%clk 0:02:51.6]} 16... fxg3 {[%clk
0:02:37.8]} 17. hxg3 {[%clk 0:02:51.5]} 17... Bc5 {[%clk 0:02:36.2]} 18. Qh4
{[%clk 0:02:48.1]} 18... Rhg8 {[%clk 0:02:32.5]} 19. Ne4 {[%clk 0:02:48.1]}
19... Ba7 {[%clk 0:02:32.1]} 20. Rfd1 {[%clk 0:02:45.7]} 20... Rg4 {[%clk
0:02:30.5]} 21. Qxh7 {[%clk 0:02:36.6]} 21... f5 {[%clk 0:01:31.7]} 22. Nd6+
{[%clk 0:02:36.1]} 22... Kb8 {[%clk 0:01:31.6]} 23. e3 {[%clk 0:02:35.7]} 23...
Be6 {[%clk 0:01:07.2]} 24. Qxc7+ {[%clk 0:02:34.8]} 24... Kxc7 {[%clk
0:01:08.1]} 25. Nxb7 {[%clk 0:02:22.1]} 25... Rxd1+ {[%clk 0:01:07.3]} 26. Rxd1
{[%clk 0:02:22.2]} 26... Kxb7 {[%clk 0:01:06.6]} 27. Rd6 {[%clk 0:02:22.8]}
27... Bd5 {[%clk 0:00:54.8]} 28. Bxd5 {[%clk 0:02:20.9]} 28... cxd5 {[%clk
0:00:55.7]} 29. Rxd5 {[%clk 0:02:21.5]} 29... f4 {[%clk 0:00:40.2]} 30. Rd7+
{[%clk 0:02:09.9]} 30... Kb8 {[%clk 0:00:40]} 31. Kg2 {[%clk 0:02:01.5]} 31...
fxe3 {[%clk 0:00:29.3]} 32. fxe3 {[%clk 0:01:58]} 32... Rb4 {[%clk 0:00:29]} 33.
Kf3 {[%clk 0:01:52.8]} 33... Rxb2 {[%clk 0:00:27.6]} 34. g4 {[%clk 0:01:53.4]}
34... Rb3 {[%clk 0:00:27.6]} 35. Re7 {[%clk 0:01:53.7]} 35... Bc5 {[%clk
0:00:27]} 36. Re5 {[%clk 0:01:52]} 36... Bd6 {[%clk 0:00:23.2]} 37. Re6 {[%clk
0:01:50.8]} 37... Kc7 {[%clk 0:00:23.8]} 38. g5 {[%clk 0:01:51.5]} 38... Rb5
{[%clk 0:00:23.4]} 39. g6 {[%clk 0:01:46.6]} 39... Rxa5 {[%clk 0:00:23.7]} 40.
Kg4 {[%clk 0:01:46.9]} 40... Ra1 {[%clk 0:00:22.5]} 41. Kg5 {[%clk 0:01:43.9]}
41... Rg1+ {[%clk 0:00:22.3]} 42. Kf6 {[%clk 0:01:41.3]} 42... Kd7 {[%clk
0:00:13.9]} 43. Re4 {[%clk 0:01:39.5]} 43... a5 {[%clk 0:00:14.5]} 44. g7 {[%clk
0:01:37.7]} 44... Kc6 {[%clk 0:00:06.5]} 45. Kf7 {[%clk 0:01:36.8]} 45... Rf1+
{[%clk 0:00:03.5]} 46. Ke6 {[%clk 0:01:36.5]} 46... Rg1 {[%clk 0:00:03.1]} 47.
Kf7 {[%clk 0:01:35]} 47... Rf1+ {[%clk 0:00:03.6]} 48. Kg6 {[%clk 0:01:35.3]}
48... Rg1+ {[%clk 0:00:03.5]} 49. Kh6 {[%clk 0:01:35.9]} 49... Kd5 {[%clk
0:00:03.9]} 50. Re8 {[%clk 0:01:33.7]} 50... a4 {[%clk 0:00:03.5]} 51. g8=Q+
{[%clk 0:01:25.1]} 51... Rxg8 {[%clk 0:00:03.8]} 52. Rxg8 {[%clk 0:01:24.8]}
52... a3 {[%clk 0:00:03.4]} 53. Ra8 {[%clk 0:01:20]} 53... Ke4 {[%clk
0:00:04.1]} 54. Rd8 {[%clk 0:01:16.4]} 54... a2 {[%clk 0:00:02.1]} 55. Ra8
{[%clk 0:01:15.5]} 55... Kxe3 {[%clk 0:00:02.3]} 56. Rxa2 {[%clk 0:01:16.2]}
56... Bc5 {[%clk 0:00:01.3]} 57. Kg6 {[%clk 0:01:16.4]} 57... Bd4 {[%clk
0:00:02.2]} 58. Kf5 {[%clk 0:01:16.9]} 58... Kf3 {[%clk 0:00:02.5]} 59. Ra3+
{[%clk 0:01:17.3]} 59... Kg2 {[%clk 0:00:02]} 60. Ke4 {[%clk 0:01:17.8]} 60...
Bf2 {[%clk 0:00:02.5]} 61. Kf4 {[%clk 0:01:17.9]} 61... Bg1 {[%clk 0:00:02.6]}
62. Kg4 {[%clk 0:01:17]} 62... Kh1 {[%clk 0:00:02.9]} 63. Ra2 {[%clk 0:01:16.7]}
63... Bh2 {[%clk 0:00:02.5]} 64. Kf3 {[%clk 0:01:17.1]} 64... Bg1 {[%clk
0:00:03.1]} 65. Ra1 {[%clk 0:01:17.6]} 65... Kh2 {[%clk 0:00:03.3]} 66. Rb1
{[%clk 0:01:18.3]} 66... Kh1 {[%clk 0:00:03.7]} 67. Rb7 {[%clk 0:01:17.2]} 67...
Bh2 {[%clk 0:00:03.4]} 68. Rg7 {[%clk 0:01:17.3]} 68... Bg1 {[%clk 0:00:02.1]}
69. Rg8 {[%clk 0:01:17.9]} 69... Bh2 {[%clk 0:00:02.3]} 70. Kf2 {[%clk
0:01:18.5]} 70... Bf4 {[%clk 0:00:02.4]} 71. Kf1 {[%clk 0:01:18.6]} 71... Bh2
{[%clk 0:00:03.3]} 72. Rg2 {[%clk 0:01:17.9]} 72... Bf4 {[%clk 0:00:03.7]} 73.
Rf2 {[%clk 0:01:18.4]} 73... Bh2 {[%clk 0:00:04.6]} 74. Rf5 {[%clk 0:01:18.3]}
74... Bg3 {[%clk 0:00:05.2]} 75. Ke2 {[%clk 0:01:17.5]} 75... Kg2 {[%clk
0:00:04.6]} 76. Rg5 {[%clk 0:01:17.3]} 76... Kh2 {[%clk 0:00:04.9]} 77. Kf3
{[%clk 0:01:17.4]} 77... Bd6 {[%clk 0:00:04.7]} 78. Rg6 {[%clk 0:01:17.3]} 78...
Be5 {[%clk 0:00:05.1]} 79. Rg2+ {[%clk 0:01:16.5]} 79... Kh1 {[%clk 0:00:04.9]}
80. Rg5 {[%clk 0:01:16.4]} 80... Bh2 {[%clk 0:00:05.3]} 81. Rh5 {[%clk
0:01:15.6]} 81... Kg1 {[%clk 0:00:05.1]} 82. Rh7 {[%clk 0:01:16.5]} 82... Kh1
{[%clk 0:00:05.7]} 83. Kg4 {[%clk 0:01:15.5]} 83... Kg1 {[%clk 0:00:05.8]} 84.
Kh3 {[%clk 0:01:14.9]} 84... Kh1 {[%clk 0:00:05.6]} 85. Rg7 {[%clk 0:01:14]}
85... Bg1 {[%clk 0:00:05.8]} 86. Rg2 {[%clk 0:01:13.5]} 86... Bd4 {[%clk
0:00:05.9]} 87. Rc2 {[%clk 0:01:12.8]} 87... Bg1 {[%clk 0:00:06.2]} 88. Kg3
{[%clk 0:01:13]} 88... Bd4 {[%clk 0:00:06.6]} 89. Rc1+ {[%clk 0:01:13.2]} 89...
Bg1 {[%clk 0:00:06.7]} 90. Kf3 {[%clk 0:01:13.9]} 90... Kh2 {[%clk 0:00:07.2]}
91. Rd1 {[%clk 0:01:14.2]} 91... Kh1 {[%clk 0:00:07.5]} 92. Rd5 {[%clk 0:01:14]}
92... Bh2 {[%clk 0:00:07.7]} 93. Kf2 {[%clk 0:01:14]} 93... Bg1+ {[%clk
0:00:07.6]} 94. Kf1 {[%clk 0:01:14.3]} 94... Bh2 {[%clk 0:00:08]} 95. Rg5 {[%clk
0:01:12]} 95... Bf4 {[%clk 0:00:08]} 96. Rg4 {[%clk 0:01:12.2]} 96... Bh2 {[%clk
0:00:07.8]} 97. Kf2 {[%clk 0:01:12.9]} 97... Bc7 {[%clk 0:00:07.7]} 98. Kf3
{[%clk 0:01:13.5]} 98... Bh2 {[%clk 0:00:08.1]} 99. Rg8 {[%clk 0:01:13.4]} 99...
Bg1 {[%clk 0:00:07.8]} 100. Ra8 {[%clk 0:01:10.8]} 100... Bh2 {[%clk 0:00:07.3]}
101. Ra2 {[%clk 0:01:11.5]} 101... Bg1 {[%clk 0:00:06.5]} 102. Ra1 {[%clk
0:01:12.1]} 102... Kh2 {[%clk 0:00:06.7]} 103. Ke2 {[%clk 0:01:11.6]} 103... Kh1
{[%clk 0:00:06.4]} 104. Kf1 {[%clk 0:01:12.2]} 104... Bd4 {[%clk 0:00:06.1]}
105. Ra4 {[%clk 0:01:12.9]} 105... Be5 {[%clk 0:00:06]} 106. Ra2 {[%clk
0:01:12.3]} 1/2-1/2

[Event "Early-Titled-Tuesday-Blitz-March-12-2024"]
[Site "Chess.com"]
[Date "2024.03.12"]
[Round "10"]
[White "Boorchess"]
[Black "Cheer_Down"]
[Result "1-0"]
[WhiteElo "2539"]
[BlackElo "2427"]
[TimeControl "180+1"]
[EndTime "9:48:08 PDT"]
[Termination "Boorchess won by resignation"]

1. d4 {[%clk 0:03:00.9]} 1... d5 {[%clk 0:02:58.9]} 2. c4 {[%clk 0:03:00.5]}
2... e6 {[%clk 0:02:58.6]} 3. Nf3 {[%clk 0:02:59.6]} 3... Nf6 {[%clk 0:02:58.3]}
4. g3 {[%clk 0:02:59.4]} 4... Be7 {[%clk 0:02:57.9]} 5. Bg2 {[%clk 0:02:59.6]}
5... O-O {[%clk 0:02:58.6]} 6. O-O {[%clk 0:03:00.1]} 6... dxc4 {[%clk
0:02:58.8]} 7. Qc2 {[%clk 0:03:00.4]} 7... a6 {[%clk 0:02:58.6]} 8. a4 {[%clk
0:03:00.3]} 8... Bd7 {[%clk 0:02:58.2]} 9. Qxc4 {[%clk 0:03:00.1]} 9... Bc6
{[%clk 0:02:58.4]} 10. Bg5 {[%clk 0:02:58]} 10... Nbd7 {[%clk 0:02:58]} 11. a5
{[%clk 0:02:54.1]} 11... h6 {[%clk 0:02:54.5]} 12. Bxf6 {[%clk 0:02:53.1]} 12...
Nxf6 {[%clk 0:02:54.5]} 13. Nc3 {[%clk 0:02:52.1]} 13... Bd5 {[%clk 0:02:42.6]}
14. Qd3 {[%clk 0:02:45.5]} 14... Bb4 {[%clk 0:02:38.8]} 15. e4 {[%clk
0:02:32.7]} 15... Bxc3 {[%clk 0:02:25.2]} 16. exd5 {[%clk 0:02:32.1]} 16... Bb4
{[%clk 0:02:11.7]} 17. dxe6 {[%clk 0:02:28.7]} 17... fxe6 {[%clk 0:02:10.9]} 18.
Qc4 {[%clk 0:02:21.6]} 18... Qd6 {[%clk 0:02:08.7]} 19. Ne5 {[%clk 0:02:07.4]}
19... Nd5 {[%clk 0:02:08.8]} 20. Nd3 {[%clk 0:02:05.9]} 20... c5 {[%clk
0:02:07.6]} 21. dxc5 {[%clk 0:02:04.7]} 1-0

[Event "Early-Titled-Tuesday-Blitz-March-12-2024"]
[Site "Chess.com"]
[Date "2024.03.12"]
[Round "10"]
[White "Matibar"]
[Black "LileKoridze"]
[Result "1-0"]
[WhiteElo "2758"]
[BlackElo "2470"]
[TimeControl "180+1"]
[EndTime "9:48:20 PDT"]
[Termination "Matibar won by resignation"]

1. a3 {[%clk 0:02:59]} 1... d5 {[%clk 0:03:00]} 2. e3 {[%clk 0:02:58.2]} 2... e6
{[%clk 0:02:59.2]} 3. c4 {[%clk 0:02:57.6]} 3... Nf6 {[%clk 0:02:58.9]} 4. Nf3
{[%clk 0:02:57.1]} 4... c5 {[%clk 0:02:58.1]} 5. d4 {[%clk 0:02:54.9]} 5... cxd4
{[%clk 0:02:57]} 6. exd4 {[%clk 0:02:54.3]} 6... dxc4 {[%clk 0:02:52.9]} 7. Bxc4
{[%clk 0:02:53.8]} 7... Nc6 {[%clk 0:02:52.9]} 8. Nc3 {[%clk 0:02:52.6]} 8... a6
{[%clk 0:02:51.4]} 9. O-O {[%clk 0:02:50.1]} 9... b5 {[%clk 0:02:50.6]} 10. Ba2
{[%clk 0:02:48.8]} 10... Bb7 {[%clk 0:02:50.1]} 11. d5 {[%clk 0:02:47.2]} 11...
exd5 {[%clk 0:02:49.1]} 12. Nxd5 {[%clk 0:02:45.1]} 12... Be7 {[%clk 0:02:49.4]}
13. Nxe7 {[%clk 0:02:19.6]} 13... Qxd1 {[%clk 0:02:45.9]} 14. Rxd1 {[%clk
0:02:14]} 14... Nxe7 {[%clk 0:02:46.2]} 15. Ne5 {[%clk 0:02:07.4]} 15... O-O
{[%clk 0:02:42.9]} 16. Be3 {[%clk 0:02:04.8]} 16... Bd5 {[%clk 0:02:40.4]} 17.
Bc5 {[%clk 0:02:03.8]} 17... Bxa2 {[%clk 0:02:39.9]} 18. Bxe7 {[%clk 0:02:03.6]}
18... Rfe8 {[%clk 0:02:40.1]} 19. Bxf6 {[%clk 0:02:03.1]} 19... gxf6 {[%clk
0:02:40.3]} 20. Ng4 {[%clk 0:02:02.3]} 20... Bb3 {[%clk 0:02:38.8]} 21. Nxf6+
{[%clk 0:02:01.6]} 21... Kf8 {[%clk 0:02:37.2]} 22. Nxe8 {[%clk 0:01:57.6]}
22... Bxd1 {[%clk 0:02:36.6]} 23. Rxd1 {[%clk 0:01:52.8]} 23... Rxe8 {[%clk
0:02:36.6]} 24. Kf1 {[%clk 0:01:53.2]} 24... Re4 {[%clk 0:02:36.1]} 25. Rd6
{[%clk 0:01:39.1]} 25... b4 {[%clk 0:02:35.9]} 26. Rxa6 {[%clk 0:01:38]} 26...
bxa3 {[%clk 0:02:35.9]} 1-0

[Event "Early-Titled-Tuesday-Blitz-March-12-2024"]
[Site "Chess.com"]
[Date "2024.03.12"]
[Round "10"]
[White "TanitoluwaAps116"]
[Black "KuzubovYuriy"]
[Result "1-0"]
[WhiteElo "2834"]
[BlackElo "2909"]
[TimeControl "180+1"]
[EndTime "9:48:53 PDT"]
[Termination "TanitoluwaAps116 won by resignation"]

1. e4 {[%clk 0:02:49.4]} 1... e6 {[%clk 0:02:59.8]} 2. d4 {[%clk 0:02:49]} 2...
d5 {[%clk 0:03:00.4]} 3. exd5 {[%clk 0:02:49.9]} 3... exd5 {[%clk 0:03:00.6]} 4.
Nf3 {[%clk 0:02:50.2]} 4... Bg4 {[%clk 0:02:59.6]} 5. h3 {[%clk 0:02:42.8]} 5...
Bh5 {[%clk 0:02:59.3]} 6. Qe2+ {[%clk 0:02:42.6]} 6... Qe7 {[%clk 0:02:58.5]} 7.
Be3 {[%clk 0:02:42.8]} 7... Nd7 {[%clk 0:02:56.1]} 8. Nc3 {[%clk 0:02:41.3]}
8... c6 {[%clk 0:02:54.1]} 9. O-O-O {[%clk 0:02:41.2]} 9... O-O-O {[%clk
0:02:52.6]} 10. g4 {[%clk 0:02:37.6]} 10... Bg6 {[%clk 0:02:52.5]} 11. Bg2
{[%clk 0:02:37.7]} 11... Re8 {[%clk 0:02:52.1]} 12. Rhe1 {[%clk 0:02:37.3]}
12... Qd8 {[%clk 0:02:51.8]} 13. Ne5 {[%clk 0:02:34.7]} 13... Kb8 {[%clk
0:02:31.1]} 14. Nxg6 {[%clk 0:02:08.1]} 14... Rxe3 {[%clk 0:02:21.9]} 15. Qxe3
{[%clk 0:01:59.8]} 15... hxg6 {[%clk 0:02:22.3]} 16. Qf4+ {[%clk 0:01:56.2]}
16... Ka8 {[%clk 0:02:18.1]} 17. Bxd5 {[%clk 0:01:39]} 17... cxd5 {[%clk
0:02:04.8]} 18. Nxd5 {[%clk 0:01:39.9]} 18... a6 {[%clk 0:02:04.8]} 19. Re8
{[%clk 0:01:34.8]} 19... Qxe8 {[%clk 0:02:02.6]} 20. Nc7+ {[%clk 0:01:33.5]}
20... Ka7 {[%clk 0:02:03.1]} 21. Nxe8 {[%clk 0:01:34.4]} 1-0

[Event "Early-Titled-Tuesday-Blitz-March-12-2024"]
[Site "Chess.com"]
[Date "2024.03.12"]
[Round "10"]
[White "Triumphmate"]
[Black "scrambleyourbrain"]
[Result "1-0"]
[WhiteElo "2523"]
[BlackElo "2388"]
[TimeControl "180+1"]
[EndTime "9:49:25 PDT"]
[Termination "Triumphmate won by resignation"]

1. e4 {[%clk 0:03:00.9]} 1... e5 {[%clk 0:02:58.1]} 2. Nf3 {[%clk 0:02:56.2]}
2... Nc6 {[%clk 0:02:58.1]} 3. Nc3 {[%clk 0:02:49]} 3... Nf6 {[%clk 0:02:56.6]}
4. Bb5 {[%clk 0:02:48.2]} 4... a6 {[%clk 0:02:55.9]} 5. Bxc6 {[%clk 0:02:48.2]}
5... dxc6 {[%clk 0:02:55.3]} 6. Nxe5 {[%clk 0:02:48.9]} 6... Nxe4 {[%clk
0:02:37]} 7. Nxe4 {[%clk 0:02:49.6]} 7... Qd4 {[%clk 0:02:36.7]} 8. O-O {[%clk
0:02:49.9]} 8... Qxe5 {[%clk 0:02:33.9]} 9. Re1 {[%clk 0:02:50]} 9... Be7 {[%clk
0:02:33.9]} 10. d4 {[%clk 0:02:49.9]} 10... Qd5 {[%clk 0:02:30.7]} 11. Bg5
{[%clk 0:02:44.3]} 11... Be6 {[%clk 0:02:01.7]} 12. Bxe7 {[%clk 0:02:42.4]}
12... Kxe7 {[%clk 0:02:02.6]} 13. Nc5 {[%clk 0:02:42.2]} 13... b6 {[%clk
0:01:58.8]} 14. Re5 {[%clk 0:02:33.9]} 14... Qd6 {[%clk 0:01:56.2]} 15. Nxe6
{[%clk 0:02:33.4]} 15... fxe6 {[%clk 0:01:56]} 16. Qg4 {[%clk 0:02:33.9]} 16...
Kf7 {[%clk 0:01:47.3]} 17. Qf4+ {[%clk 0:02:26.8]} 17... Kg8 {[%clk 0:01:37]}
18. Rae1 {[%clk 0:02:27]} 18... Rf8 {[%clk 0:01:33.5]} 19. Qg4 {[%clk
0:02:23.8]} 19... c5 {[%clk 0:01:16.9]} 20. dxc5 {[%clk 0:02:17.2]} 20... bxc5
{[%clk 0:01:16.8]} 21. Rxe6 {[%clk 0:02:14.6]} 21... Qd2 {[%clk 0:01:15.9]} 22.
R6e2 {[%clk 0:01:50.2]} 1-0

[Event "Early-Titled-Tuesday-Blitz-March-12-2024"]
[Site "Chess.com"]
[Date "2024.03.12"]
[Round "10"]
[White "wonderfultime"]
[Black "Hikaru"]
[Result "1/2-1/2"]
[WhiteElo "3082"]
[BlackElo "3238"]
[TimeControl "180+1"]
[EndTime "9:49:36 PDT"]
[Termination "Game drawn by agreement"]

1. d4 {[%clk 0:02:57]} 1... Nf6 {[%clk 0:02:57.2]} 2. c4 {[%clk 0:02:55.7]} 2...
c5 {[%clk 0:02:56.9]} 3. d5 {[%clk 0:02:55.7]} 3... d6 {[%clk 0:02:56.6]} 4. Nc3
{[%clk 0:02:55.2]} 4... g6 {[%clk 0:02:56.7]} 5. e4 {[%clk 0:02:55.1]} 5... Bg7
{[%clk 0:02:57.3]} 6. h3 {[%clk 0:02:55.5]} 6... e6 {[%clk 0:02:57.5]} 7. Nf3
{[%clk 0:02:55.8]} 7... exd5 {[%clk 0:02:57.9]} 8. exd5 {[%clk 0:02:56]} 8...
O-O {[%clk 0:02:58.4]} 9. Bd3 {[%clk 0:02:55.6]} 9... Re8+ {[%clk 0:02:58.7]}
10. Be3 {[%clk 0:02:56.4]} 10... Rxe3+ {[%clk 0:02:58.4]} 11. fxe3 {[%clk
0:02:57.3]} 11... Qe7 {[%clk 0:02:59.2]} 12. O-O {[%clk 0:02:54.8]} 12... Nbd7
{[%clk 0:02:59.2]} 13. e4 {[%clk 0:02:50.9]} 13... Nh5 {[%clk 0:02:54.2]} 14.
Qd2 {[%clk 0:02:46.1]} 14... Ne5 {[%clk 0:02:54.3]} 15. Nxe5 {[%clk 0:02:40.9]}
15... Bxe5 {[%clk 0:02:55.2]} 16. Rf3 {[%clk 0:02:41.3]} 16... Bd7 {[%clk
0:02:52.1]} 17. Raf1 {[%clk 0:02:36.5]} 17... Rf8 {[%clk 0:02:50.5]} 18. Ne2
{[%clk 0:02:36.4]} 18... f6 {[%clk 0:02:46.5]} 19. a3 {[%clk 0:02:21.2]} 19...
Ng7 {[%clk 0:02:45.3]} 20. b4 {[%clk 0:02:20.9]} 20... b6 {[%clk 0:02:45.7]} 21.
Bc2 {[%clk 0:02:18.9]} 21... Rc8 {[%clk 0:02:42.4]} 22. Bb3 {[%clk 0:02:10.7]}
22... Ne8 {[%clk 0:02:22.7]} 23. Kh1 {[%clk 0:02:05.9]} 23... Ng7 {[%clk
0:02:21.2]} 24. bxc5 {[%clk 0:01:56.2]} 24... dxc5 {[%clk 0:02:12.6]} 25. Qd1
{[%clk 0:01:53.4]} 25... Ne8 {[%clk 0:02:09.5]} 26. Ba4 {[%clk 0:01:51.4]} 26...
Bxa4 {[%clk 0:02:03.4]} 27. Qxa4 {[%clk 0:01:52.3]} 27... Nd6 {[%clk 0:02:04.2]}
28. Qc2 {[%clk 0:01:46.7]} 28... Re8 {[%clk 0:02:04.3]} 29. Qd3 {[%clk
0:01:30.5]} 29... Kg7 {[%clk 0:02:04]} 30. a4 {[%clk 0:01:27.8]} 30... h5 {[%clk
0:01:59.2]} 31. Qc2 {[%clk 0:01:17.3]} 31... h4 {[%clk 0:01:57.4]} 32. Qd3
{[%clk 0:01:18]} 32... g5 {[%clk 0:01:54.1]} 1/2-1/2